[Event "Titled Tuesday Blitz October 12 2021"]
[White "Holt, Conrad"]
[Black "Weetik, Vjacheslav"]
[WhiteFideId "2034387"]
[BlackFideId "4153472"]
[WhiteElo "2586"]
[BlackElo "2469"]
[Result "1-0"]
[Round "10"]
[TimeControl "180+1"]
[Date "2021.10.12"]
[WhiteClock "0:02:21"]
[BlackClock "0:00:16"]

1. d4 {[%clk 0:03:00]}  Nf6 {[%clk 0:02:56]} 2. c4 {[%clk 0:03:00]}  g6 {[%clk 0:02:57]} 3. Nc3 {[%clk 0:03:01]}  Bg7 {[%clk 0:02:57]} 4. e4 {[%clk 0:03:01]}  d6 {[%clk 0:02:58]} 5. Nf3 {[%clk 0:03:02]}  O-O {[%clk 0:02:58]} 6. h3 {[%clk 0:03:02]}  e5 {[%clk 0:02:57]} 7. dxe5 {[%clk 0:03:01]}  dxe5 {[%clk 0:02:57]} 8. Qxd8 {[%clk 0:03:02]}  Rxd8 {[%clk 0:02:57]} 9. Bg5 {[%clk 0:03:03]}  Re8 {[%clk 0:02:50]} 10. Nd5 {[%clk 0:03:01]}  Nxd5 {[%clk 0:02:49]} 11. cxd5 {[%clk 0:03:02]}  c6 {[%clk 0:02:46]} 12. Bc4 {[%clk 0:03:02]}  b5 {[%clk 0:02:37]} 13. Bb3 {[%clk 0:03:02]}  a5 {[%clk 0:02:37]} 14. a3 {[%clk 0:03:01]}  Bb7 {[%clk 0:01:55]} 15. Rc1 {[%clk 0:02:58]}  Rc8 {[%clk 0:01:42]} 16. Be3 {[%clk 0:02:54]}  Nd7 {[%clk 0:01:27]} 17. dxc6 {[%clk 0:02:52]}  Rxc6 {[%clk 0:01:26]} 18. Rxc6 {[%clk 0:02:44]}  Bxc6 {[%clk 0:01:27]} 19. Ng5 {[%clk 0:02:44]}  Rf8 {[%clk 0:01:19]} 20. Ke2 {[%clk 0:02:42]}  h6 {[%clk 0:01:15]} 21. Rc1 {[%clk 0:02:32]}  Nb8 {[%clk 0:00:53]} 22. Nxf7 {[%clk 0:02:29]}  Rxf7 {[%clk 0:00:53]} 23. Ba7 {[%clk 0:02:29]}  Bxe4 {[%clk 0:00:34]} 24. Rc8+ {[%clk 0:02:22]}  Kh7 {[%clk 0:00:31]} 25. Bxf7 {[%clk 0:02:22]}  Nc6 {[%clk 0:00:16]} 26. Bg8+ {[%clk 0:02:21]} 1-0


[Site "https://www.chess.com"]

[Event "Titled Tuesday Blitz October 12 2021"]
[White "Karttunen, Mika"]
[Black "Kozak, Adam"]
[WhiteFideId "502081"]
[BlackFideId "753246"]
[WhiteElo "2343"]
[BlackElo "2448"]
[Result "0-1"]
[Round "10"]
[TimeControl "180+1"]
[Date "2021.10.12"]
[WhiteClock "0:00:05"]
[BlackClock "0:01:43"]

1. e4 {[%clk 0:03:00]}  Nf6 {[%clk 0:02:51]} 2. e5 {[%clk 0:02:59]}  Nd5 {[%clk 0:02:50]} 3. d4 {[%clk 0:02:59]}  d6 {[%clk 0:02:50]} 4. exd6 {[%clk 0:02:59]}  cxd6 {[%clk 0:02:51]} 5. c4 {[%clk 0:02:59]}  Nc7 {[%clk 0:02:43]} 6. Nc3 {[%clk 0:02:57]}  g6 {[%clk 0:02:43]} 7. Be3 {[%clk 0:02:55]}  Bg7 {[%clk 0:02:36]} 8. h3 {[%clk 0:02:52]}  Nd7 {[%clk 0:02:35]} 9. Nf3 {[%clk 0:02:52]}  Nf6 {[%clk 0:02:35]} 10. d5 {[%clk 0:02:44]}  a6 {[%clk 0:02:33]} 11. a4 {[%clk 0:02:32]}  O-O {[%clk 0:02:31]} 12. Be2 {[%clk 0:02:31]}  e5 {[%clk 0:02:26]} 13. g4 {[%clk 0:02:09]}  Nd7 {[%clk 0:02:22]} 14. Ne4 {[%clk 0:01:46]}  Ne8 {[%clk 0:02:19]} 15. g5 {[%clk 0:01:41]}  f5 {[%clk 0:02:17]} 16. gxf6 {[%clk 0:01:40]}  Ndxf6 {[%clk 0:02:17]} 17. Nfd2 {[%clk 0:01:24]}  Nxe4 {[%clk 0:02:12]} 18. Nxe4 {[%clk 0:01:24]}  Nf6 {[%clk 0:02:13]} 19. Ng5 {[%clk 0:00:49]}  Qe7 {[%clk 0:02:06]} 20. Bg4 {[%clk 0:00:27]}  Re8 {[%clk 0:01:57]} 21. Be6+ {[%clk 0:00:25]}  Bxe6 {[%clk 0:01:55]} 22. Nxe6 {[%clk 0:00:25]}  Rac8 {[%clk 0:01:52]} 23. b3 {[%clk 0:00:18]}  Qf7 {[%clk 0:01:52]} 24. Rc1 {[%clk 0:00:11]}  Nh5 {[%clk 0:01:52]} 25. Qg4 {[%clk 0:00:10]}  Nf4 {[%clk 0:01:49]} 26. Kd2 {[%clk 0:00:10]}  Nxe6 {[%clk 0:01:47]} 27. dxe6 {[%clk 0:00:10]}  Rxe6 {[%clk 0:01:47]} 28. Qe4 {[%clk 0:00:08]}  Rd8 {[%clk 0:01:47]} 29. Qd5 {[%clk 0:00:08]}  Re7 {[%clk 0:01:46]} 30. Ke2 {[%clk 0:00:08]}  Bf6 {[%clk 0:01:46]} 31. Qxf7+ {[%clk 0:00:07]}  Rxf7 {[%clk 0:01:46]} 32. Rcd1 {[%clk 0:00:08]}  Rfd7 {[%clk 0:01:45]} 33. Rd5 {[%clk 0:00:08]}  Kf7 {[%clk 0:01:46]} 34. Rhd1 {[%clk 0:00:09]}  Ke6 {[%clk 0:01:46]} 35. Bb6 {[%clk 0:00:09]}  Rc8 {[%clk 0:01:45]} 36. c5 {[%clk 0:00:09]}  Rc6 {[%clk 0:01:43]} 37. a5 {[%clk 0:00:09]}  Be7 {[%clk 0:01:43]} 38. b4 {[%clk 0:00:09]}  Rc8 {[%clk 0:01:43]} 39. f3 {[%clk 0:00:10]}  Rf8 {[%clk 0:01:42]} 40. R1d3 {[%clk 0:00:06]}  Rf7 {[%clk 0:01:42]} 41. Rd1 {[%clk 0:00:05]}  Bf8 {[%clk 0:01:42]} 42. R1d3 {[%clk 0:00:04]}  dxc5 {[%clk 0:01:42]} 43. Rxd7 {[%clk 0:00:03]}  Rxd7 {[%clk 0:01:43]} 44. Rxd7 {[%clk 0:00:03]}  Kxd7 {[%clk 0:01:43]} 45. bxc5 {[%clk 0:00:04]}  Kc6 {[%clk 0:01:43]} 46. Kd3 {[%clk 0:00:05]}  Bxc5 {[%clk 0:01:43]} 47. Bxc5 {[%clk 0:00:05]}  Kxc5 {[%clk 0:01:43]} 0-1


[Site "https://www.chess.com"]

[Event "Titled Tuesday Blitz October 12 2021"]
[White "Kucuksari, Kaan"]
[Black "Timmermans, Mark"]
[WhiteFideId "6380166"]
[BlackFideId "1026399"]
[WhiteElo "2301"]
[BlackElo "2460"]
[Result "0-1"]
[Round "10"]
[TimeControl "180+1"]
[Date "2021.10.12"]
[WhiteClock "0:01:43"]
[BlackClock "0:02:14"]

1. d4 {[%clk 0:02:59]}  Nf6 {[%clk 0:02:58]} 2. Bg5 {[%clk 0:02:59]}  Ne4 {[%clk 0:02:58]} 3. Bf4 {[%clk 0:02:59]}  c5 {[%clk 0:02:57]} 4. f3 {[%clk 0:02:57]}  Qa5+ {[%clk 0:02:56]} 5. c3 {[%clk 0:02:57]}  Nf6 {[%clk 0:02:56]} 6. d5 {[%clk 0:02:58]}  e6 {[%clk 0:02:56]} 7. e4 {[%clk 0:02:57]}  exd5 {[%clk 0:02:57]} 8. exd5 {[%clk 0:02:56]}  d6 {[%clk 0:02:57]} 9. Qe2+ {[%clk 0:02:50]}  Be7 {[%clk 0:02:56]} 10. Bxd6 {[%clk 0:02:48]}  Nxd5 {[%clk 0:02:56]} 11. Bxe7 {[%clk 0:02:45]}  Nxe7 {[%clk 0:02:55]} 12. Qb5+ {[%clk 0:02:46]}  Qxb5 {[%clk 0:02:54]} 13. Bxb5+ {[%clk 0:02:46]}  Bd7 {[%clk 0:02:49]} 14. a4 {[%clk 0:02:44]}  a6 {[%clk 0:02:48]} 15. Bxd7+ {[%clk 0:02:42]}  Nxd7 {[%clk 0:02:49]} 16. Kf2 {[%clk 0:02:40]}  O-O-O {[%clk 0:02:48]} 17. Ne2 {[%clk 0:02:05]}  Ne5 {[%clk 0:02:29]} 18. b3 {[%clk 0:02:06]}  Nf5 {[%clk 0:02:26]} 19. f4 {[%clk 0:02:00]}  Nd3+ {[%clk 0:02:23]} 20. Kf3 {[%clk 0:02:00]}  Rhe8 {[%clk 0:02:23]} 21. Ng3 {[%clk 0:01:56]}  Re3+ {[%clk 0:02:20]} 22. Kg4 {[%clk 0:01:57]}  Nf2+ {[%clk 0:02:14]} 23. Kh5 {[%clk 0:01:43]}  g6+ {[%clk 0:02:14]} 24. Kg5 {[%clk 0:01:42]}  h6+ {[%clk 0:02:15]} 25. Kf6 {[%clk 0:01:43]}  Rd6+ {[%clk 0:02:14]} 26. Kxf7 {[%clk 0:01:43]}  Re7+ {[%clk 0:02:14]} 0-1


[Site "https://www.chess.com"]

[Event "Titled Tuesday Blitz October 12 2021"]
[White "Langrock, Hannes"]
[Black "Krivonosov, Oleg"]
[WhiteFideId "4655290"]
[BlackFideId "11600349"]
[WhiteElo "2325"]
[BlackElo "2469"]
[Result "1/2-1/2"]
[Round "10"]
[TimeControl "180+1"]
[Date "2021.10.12"]
[WhiteClock "0:00:49"]
[BlackClock "0:01:30"]

1. d4 {[%clk 0:02:59]}  d5 {[%clk 0:02:59]} 2. c4 {[%clk 0:02:59]}  e6 {[%clk 0:02:59]} 3. Nf3 {[%clk 0:02:59]}  Nf6 {[%clk 0:02:58]} 4. g3 {[%clk 0:02:59]}  Be7 {[%clk 0:02:58]} 5. Bg2 {[%clk 0:02:59]}  O-O {[%clk 0:02:58]} 6. O-O {[%clk 0:03:00]}  Nbd7 {[%clk 0:02:57]} 7. b3 {[%clk 0:02:56]}  c6 {[%clk 0:02:56]} 8. Qc2 {[%clk 0:02:50]}  b6 {[%clk 0:02:56]} 9. Nbd2 {[%clk 0:02:50]}  Bb7 {[%clk 0:02:55]} 10. e4 {[%clk 0:02:48]}  dxe4 {[%clk 0:02:51]} 11. Nxe4 {[%clk 0:02:48]}  c5 {[%clk 0:02:51]} 12. Nxf6+ {[%clk 0:02:44]}  Bxf6 {[%clk 0:02:50]} 13. Bb2 {[%clk 0:02:21]}  Qc7 {[%clk 0:02:44]} 14. dxc5 {[%clk 0:02:10]}  bxc5 {[%clk 0:02:40]} 15. Rad1 {[%clk 0:02:03]}  Rad8 {[%clk 0:02:36]} 16. Rd2 {[%clk 0:01:58]}  Bxb2 {[%clk 0:02:31]} 17. Qxb2 {[%clk 0:01:58]}  Bxf3 {[%clk 0:02:30]} 18. Bxf3 {[%clk 0:01:59]}  Ne5 {[%clk 0:02:30]} 19. Bg2 {[%clk 0:01:48]}  Rxd2 {[%clk 0:02:28]} 20. Qxd2 {[%clk 0:01:47]}  Rd8 {[%clk 0:02:28]} 21. Qe2 {[%clk 0:01:45]}  a5 {[%clk 0:02:16]} 22. Re1 {[%clk 0:01:34]}  Nc6 {[%clk 0:02:03]} 23. Bxc6 {[%clk 0:01:32]}  Qxc6 {[%clk 0:02:04]} 24. Rd1 {[%clk 0:01:25]}  Rxd1+ {[%clk 0:02:03]} 25. Qxd1 {[%clk 0:01:24]}  Qc7 {[%clk 0:02:03]} 26. Qd3 {[%clk 0:01:21]}  g6 {[%clk 0:02:02]} 27. h4 {[%clk 0:01:21]}  h5 {[%clk 0:02:01]} 28. Qe4 {[%clk 0:01:21]}  Qb6 {[%clk 0:01:58]} 29. Kg2 {[%clk 0:01:19]}  Qb4 {[%clk 0:01:57]} 30. Qa8+ {[%clk 0:01:14]}  Kg7 {[%clk 0:01:56]} 31. Qa7 {[%clk 0:01:07]}  Qa3 {[%clk 0:01:53]} 32. Qc7 {[%clk 0:00:53]}  Qxa2 {[%clk 0:01:47]} 33. Qe5+ {[%clk 0:00:53]}  Kh7 {[%clk 0:01:34]} 34. Qc7 {[%clk 0:00:50]}  Kg7 {[%clk 0:01:32]} 35. Qe5+ {[%clk 0:00:49]}  Kh7 {[%clk 0:01:30]} 36. Qc7 {[%clk 0:00:49]}  Kg7 {[%clk 0:01:30]} 1/2-1/2


[Site "https://www.chess.com"]

[Event "Titled Tuesday Blitz October 12 2021"]
[White "Maly, Alexey"]
[Black "Kamsky, Gata"]
[WhiteFideId "14103184"]
[BlackFideId "2000024"]
[WhiteElo "2294"]
[BlackElo "2603"]
[Result "1-0"]
[Round "10"]
[TimeControl "180+1"]
[Date "2021.10.12"]
[WhiteClock "0:00:07"]
[BlackClock "0:00:04"]

1. d4 {[%clk 0:03:00]}  d5 {[%clk 0:02:59]} 2. c4 {[%clk 0:03:00]}  c6 {[%clk 0:02:58]} 3. e3 {[%clk 0:03:01]}  Nf6 {[%clk 0:02:57]} 4. Bd3 {[%clk 0:03:01]}  g6 {[%clk 0:02:55]} 5. Nc3 {[%clk 0:03:00]}  Bg7 {[%clk 0:02:55]} 6. Nge2 {[%clk 0:03:00]}  O-O {[%clk 0:02:55]} 7. O-O {[%clk 0:03:01]}  a6 {[%clk 0:02:53]} 8. b4 {[%clk 0:02:57]}  dxc4 {[%clk 0:02:34]} 9. Bxc4 {[%clk 0:02:57]}  Nbd7 {[%clk 0:02:34]} 10. Bb2 {[%clk 0:02:54]}  e5 {[%clk 0:02:28]} 11. a3 {[%clk 0:02:47]}  exd4 {[%clk 0:02:28]} 12. Nxd4 {[%clk 0:02:48]}  Qc7 {[%clk 0:02:21]} 13. Rc1 {[%clk 0:02:44]}  Ne5 {[%clk 0:02:17]} 14. Be2 {[%clk 0:02:40]}  Neg4 {[%clk 0:02:16]} 15. g3 {[%clk 0:02:40]}  Qe5 {[%clk 0:02:12]} 16. Kg2 {[%clk 0:02:35]}  Qh5 {[%clk 0:02:05]} 17. h4 {[%clk 0:02:22]}  Bd7 {[%clk 0:01:48]} 18. Qb3 {[%clk 0:02:14]}  Rae8 {[%clk 0:01:39]} 19. Na4 {[%clk 0:02:05]}  Nd5 {[%clk 0:01:29]} 20. Nc5 {[%clk 0:01:51]}  Bc8 {[%clk 0:01:28]} 21. Bf3 {[%clk 0:01:42]}  Qh6 {[%clk 0:00:59]} 22. Rfe1 {[%clk 0:01:34]}  g5 {[%clk 0:00:55]} 23. Rh1 {[%clk 0:01:31]}  Ngxe3+ {[%clk 0:00:52]} 24. fxe3 {[%clk 0:01:31]}  Nxe3+ {[%clk 0:00:47]} 25. Kf2 {[%clk 0:01:30]}  g4 {[%clk 0:00:46]} 26. Be4 {[%clk 0:00:46]}  b6 {[%clk 0:00:45]} 27. Qxe3 {[%clk 0:00:42]}  Qxe3+ {[%clk 0:00:44]} 28. Kxe3 {[%clk 0:00:43]}  bxc5 {[%clk 0:00:39]} 29. Rxc5 {[%clk 0:00:41]}  f5 {[%clk 0:00:39]} 30. Nxf5 {[%clk 0:00:37]}  Bxf5 {[%clk 0:00:38]} 31. Rxf5 {[%clk 0:00:33]}  Rxf5 {[%clk 0:00:36]} 32. Bxg7 {[%clk 0:00:32]}  Kxg7 {[%clk 0:00:36]} 33. Kd4 {[%clk 0:00:31]}  Rf6 {[%clk 0:00:34]} 34. Rc1 {[%clk 0:00:28]}  Rd6+ {[%clk 0:00:32]} 35. Kc5 {[%clk 0:00:28]}  Rd2 {[%clk 0:00:30]} 36. Bxc6 {[%clk 0:00:24]}  Re3 {[%clk 0:00:30]} 37. a4 {[%clk 0:00:22]}  Rxg3 {[%clk 0:00:30]} 38. Rc4 {[%clk 0:00:19]}  h5 {[%clk 0:00:29]} 39. Kb6 {[%clk 0:00:15]}  Rb3 {[%clk 0:00:24]} 40. Kxa6 {[%clk 0:00:15]}  g3 {[%clk 0:00:24]} 41. b5 {[%clk 0:00:15]}  g2 {[%clk 0:00:22]} 42. Rc1 {[%clk 0:00:11]}  Rg3 {[%clk 0:00:20]} 43. Rg1 {[%clk 0:00:10]}  Rd4 {[%clk 0:00:18]} 44. a5 {[%clk 0:00:09]}  Rd6 {[%clk 0:00:16]} 45. Kb7 {[%clk 0:00:07]}  Rdg6 {[%clk 0:00:04]} 46. a6 {[%clk 0:00:07]} 1-0


[Site "https://www.chess.com"]

[Event "Titled Tuesday Blitz October 12 2021"]
[White "Molina, Roberto Junio Brito"]
[Black "Demchenko, Anton"]
[WhiteFideId "2109450"]
[BlackFideId "4160258"]
[WhiteElo "2402"]
[BlackElo "2583"]
[Result "0-1"]
[Round "10"]
[TimeControl "180+1"]
[Date "2021.10.12"]
[WhiteClock "0:00:04"]
[BlackClock "0:00:11"]

1. d4 {[%clk 0:03:00]}  Nf6 {[%clk 0:02:58]} 2. c4 {[%clk 0:02:59]}  e6 {[%clk 0:02:58]} 3. Nf3 {[%clk 0:02:57]}  b6 {[%clk 0:02:57]} 4. g3 {[%clk 0:02:56]}  Bb7 {[%clk 0:02:57]} 5. Bg2 {[%clk 0:02:56]}  Bb4+ {[%clk 0:02:58]} 6. Bd2 {[%clk 0:02:56]}  c5 {[%clk 0:02:58]} 7. Bxb4 {[%clk 0:02:55]}  cxb4 {[%clk 0:02:59]} 8. a3 {[%clk 0:02:54]}  Na6 {[%clk 0:02:56]} 9. O-O {[%clk 0:02:42]}  O-O {[%clk 0:02:56]} 10. Qb3 {[%clk 0:02:40]}  Qe7 {[%clk 0:02:55]} 11. Nbd2 {[%clk 0:02:36]}  Rfc8 {[%clk 0:02:52]} 12. Rfc1 {[%clk 0:02:35]}  d5 {[%clk 0:02:49]} 13. Ne5 {[%clk 0:02:27]}  h6 {[%clk 0:02:43]} 14. cxd5 {[%clk 0:02:26]}  Nxd5 {[%clk 0:02:39]} 15. Ndc4 {[%clk 0:01:13]}  Rc7 {[%clk 0:02:31]} 16. Rc2 {[%clk 0:01:05]}  Rac8 {[%clk 0:02:28]} 17. Rac1 {[%clk 0:01:05]}  Qd8 {[%clk 0:02:15]} 18. e3 {[%clk 0:01:03]}  bxa3 {[%clk 0:02:13]} 19. bxa3 {[%clk 0:01:03]}  Nb8 {[%clk 0:02:08]} 20. h4 {[%clk 0:00:58]}  Qe7 {[%clk 0:01:33]} 21. a4 {[%clk 0:00:47]}  Na6 {[%clk 0:01:30]} 22. Nd2 {[%clk 0:00:36]}  f6 {[%clk 0:01:12]} 23. Nd3 {[%clk 0:00:35]}  Rxc2 {[%clk 0:01:08]} 24. Rxc2 {[%clk 0:00:35]}  Rxc2 {[%clk 0:01:09]} 25. Qxc2 {[%clk 0:00:36]}  Qc7 {[%clk 0:01:00]} 26. Qxc7 {[%clk 0:00:35]}  Naxc7 {[%clk 0:01:01]} 27. Nf4 {[%clk 0:00:33]}  Kf7 {[%clk 0:00:55]} 28. Nc4 {[%clk 0:00:29]}  Ke7 {[%clk 0:00:55]} 29. Nd3 {[%clk 0:00:25]}  Ba6 {[%clk 0:00:51]} 30. Ncb2 {[%clk 0:00:24]}  Bc8 {[%clk 0:00:46]} 31. e4 {[%clk 0:00:23]}  Nc3 {[%clk 0:00:46]} 32. f4 {[%clk 0:00:17]}  Ne2+ {[%clk 0:00:44]} 33. Kf2 {[%clk 0:00:16]}  Nxd4 {[%clk 0:00:45]} 34. Ke3 {[%clk 0:00:16]}  Nb3 {[%clk 0:00:37]} 35. Nb4 {[%clk 0:00:13]}  Bd7 {[%clk 0:00:37]} 36. e5 {[%clk 0:00:12]}  fxe5 {[%clk 0:00:38]} 37. fxe5 {[%clk 0:00:12]}  Na5 {[%clk 0:00:37]} 38. Kd4 {[%clk 0:00:11]}  g5 {[%clk 0:00:26]} 39. hxg5 {[%clk 0:00:11]}  hxg5 {[%clk 0:00:27]} 40. Be4 {[%clk 0:00:12]}  g4 {[%clk 0:00:25]} 41. Nc2 {[%clk 0:00:07]}  Na6 {[%clk 0:00:23]} 42. Ne3 {[%clk 0:00:07]}  Nc5 {[%clk 0:00:23]} 43. Bc2 {[%clk 0:00:07]}  Nc6+ {[%clk 0:00:22]} 44. Kc3 {[%clk 0:00:04]}  Nxe5 {[%clk 0:00:23]} 45. Nbc4 {[%clk 0:00:04]}  Nxc4 {[%clk 0:00:18]} 46. Kxc4 {[%clk 0:00:05]}  e5 {[%clk 0:00:16]} 47. Kd5 {[%clk 0:00:05]}  Kf6 {[%clk 0:00:16]} 48. Kd6 {[%clk 0:00:05]}  Bxa4 {[%clk 0:00:13]} 49. Nxg4+ {[%clk 0:00:05]}  Kg5 {[%clk 0:00:12]} 50. Bxa4 {[%clk 0:00:06]}  Kxg4 {[%clk 0:00:11]} 51. Bc2 {[%clk 0:00:04]}  e4 {[%clk 0:00:11]} 0-1


[Site "https://www.chess.com"]

[Event "Titled Tuesday Blitz October 12 2021"]
[White "Moroni, Luca Jr"]
[Black "Gaehwiler, Gabriel"]
[WhiteFideId "865834"]
[BlackFideId "1314530"]
[WhiteElo "2491"]
[BlackElo "2320"]
[Result "0-1"]
[Round "10"]
[TimeControl "180+1"]
[Date "2021.10.12"]
[WhiteClock "0:00:02"]
[BlackClock "0:00:19"]

1. d4 {[%clk 0:03:00]}  Nf6 {[%clk 0:02:59]} 2. Bf4 {[%clk 0:03:01]}  d6 {[%clk 0:02:58]} 3. e3 {[%clk 0:03:01]}  g6 {[%clk 0:02:57]} 4. Nf3 {[%clk 0:03:01]}  Bg7 {[%clk 0:02:57]} 5. h3 {[%clk 0:03:02]}  O-O {[%clk 0:02:57]} 6. Nbd2 {[%clk 0:03:02]}  b6 {[%clk 0:02:57]} 7. Bh2 {[%clk 0:03:00]}  Bb7 {[%clk 0:02:57]} 8. a4 {[%clk 0:03:00]}  a5 {[%clk 0:02:57]} 9. c3 {[%clk 0:02:58]}  Nbd7 {[%clk 0:02:56]} 10. Bd3 {[%clk 0:02:58]}  Re8 {[%clk 0:02:54]} 11. Qe2 {[%clk 0:02:58]}  e5 {[%clk 0:02:54]} 12. dxe5 {[%clk 0:02:58]}  dxe5 {[%clk 0:02:54]} 13. e4 {[%clk 0:02:48]}  Nc5 {[%clk 0:02:37]} 14. Bc2 {[%clk 0:02:48]}  Ba6 {[%clk 0:02:34]} 15. Nc4 {[%clk 0:02:48]}  Qe7 {[%clk 0:02:19]} 16. O-O {[%clk 0:02:40]}  Qe6 {[%clk 0:02:07]} 17. Nfd2 {[%clk 0:02:40]}  Rad8 {[%clk 0:02:06]} 18. b4 {[%clk 0:02:39]}  Rxd2 {[%clk 0:01:54]} 19. Qxd2 {[%clk 0:02:38]}  Ncxe4 {[%clk 0:01:55]} 20. Bxe4 {[%clk 0:02:32]}  Nxe4 {[%clk 0:01:56]} 21. Qe3 {[%clk 0:02:28]}  Qxc4 {[%clk 0:01:55]} 22. Rfe1 {[%clk 0:02:23]}  Nxc3 {[%clk 0:01:51]} 23. bxa5 {[%clk 0:02:21]}  e4 {[%clk 0:01:44]} 24. Kh1 {[%clk 0:02:14]}  Bd4 {[%clk 0:01:42]} 25. Qd2 {[%clk 0:02:05]}  bxa5 {[%clk 0:01:36]} 26. Rac1 {[%clk 0:02:05]}  c5 {[%clk 0:01:33]} 27. Qh6 {[%clk 0:01:55]}  e3 {[%clk 0:01:19]} 28. fxe3 {[%clk 0:01:50]}  Bg7 {[%clk 0:01:19]} 29. Qg5 {[%clk 0:01:48]}  Bb7 {[%clk 0:01:18]} 30. e4 {[%clk 0:01:45]}  Qxa4 {[%clk 0:01:16]} 31. Qxc5 {[%clk 0:01:18]}  Nxe4 {[%clk 0:01:15]} 32. Qb6 {[%clk 0:01:18]}  Qd7 {[%clk 0:01:13]} 33. Rc7 {[%clk 0:01:11]}  Qd4 {[%clk 0:00:47]} 34. Qxd4 {[%clk 0:00:36]}  Bxd4 {[%clk 0:00:46]} 35. Bg1 {[%clk 0:00:31]}  Bxg1 {[%clk 0:00:20]} 36. Kxg1 {[%clk 0:00:32]}  Ba8 {[%clk 0:00:19]} 37. Ra7 {[%clk 0:00:31]}  f5 {[%clk 0:00:17]} 38. Rxa5 {[%clk 0:00:31]}  Bc6 {[%clk 0:00:16]} 39. Ra7 {[%clk 0:00:31]}  Kf8 {[%clk 0:00:15]} 40. Rc1 {[%clk 0:00:30]}  Bd5 {[%clk 0:00:15]} 41. Rcc7 {[%clk 0:00:30]}  Bg8 {[%clk 0:00:15]} 42. g4 {[%clk 0:00:25]}  f4 {[%clk 0:00:15]} 43. Kg2 {[%clk 0:00:24]}  Ng5 {[%clk 0:00:15]} 44. h4 {[%clk 0:00:23]}  Ne6 {[%clk 0:00:15]} 45. Rd7 {[%clk 0:00:17]}  Nc5 {[%clk 0:00:15]} 46. Rd4 {[%clk 0:00:17]}  Ne6 {[%clk 0:00:14]} 47. Rdd7 {[%clk 0:00:17]}  Rc8 {[%clk 0:00:15]} 48. g5 {[%clk 0:00:16]}  Nc5 {[%clk 0:00:15]} 49. Rd4 {[%clk 0:00:13]}  Ne6 {[%clk 0:00:16]} 50. Rdd7 {[%clk 0:00:13]}  Rc2+ {[%clk 0:00:15]} 51. Kf3 {[%clk 0:00:12]}  Rc3+ {[%clk 0:00:16]} 52. Kf2 {[%clk 0:00:12]}  Rc8 {[%clk 0:00:16]} 53. Kf3 {[%clk 0:00:10]}  Re8 {[%clk 0:00:15]} 54. Rd6 {[%clk 0:00:06]}  Re7 {[%clk 0:00:13]} 55. Ra8+ {[%clk 0:00:05]}  Kg7 {[%clk 0:00:13]} 56. Raa6 {[%clk 0:00:04]}  Bf7 {[%clk 0:00:13]} 57. Rab6 {[%clk 0:00:04]}  Nc5 {[%clk 0:00:13]} 58. Kxf4 {[%clk 0:00:04]}  Nd7 {[%clk 0:00:14]} 59. Rb7 {[%clk 0:00:04]}  Be8 {[%clk 0:00:14]} 60. Kg3 {[%clk 0:00:03]}  Kf8 {[%clk 0:00:14]} 61. Rd4 {[%clk 0:00:03]}  Ne5 {[%clk 0:00:13]} 62. Rf4+ {[%clk 0:00:03]}  Nf7 {[%clk 0:00:13]} 63. Rb8 {[%clk 0:00:03]}  Kg7 {[%clk 0:00:13]} 64. Rf6 {[%clk 0:00:03]}  Bd7 {[%clk 0:00:13]} 65. Rb7 {[%clk 0:00:03]}  Kf8 {[%clk 0:00:12]} 66. Ra7 {[%clk 0:00:03]}  Be8 {[%clk 0:00:13]} 67. Ra8 {[%clk 0:00:03]}  Rc7 {[%clk 0:00:12]} 68. Rf3 {[%clk 0:00:03]}  Re7 {[%clk 0:00:12]} 69. Rf4 {[%clk 0:00:03]}  Kg7 {[%clk 0:00:13]} 70. Rf3 {[%clk 0:00:03]}  Nd6 {[%clk 0:00:13]} 71. Rf6 {[%clk 0:00:03]}  Nf5+ {[%clk 0:00:14]} 72. Kf4 {[%clk 0:00:03]}  Nxh4 {[%clk 0:00:13]} 73. Rd6 {[%clk 0:00:03]}  Nf5 {[%clk 0:00:13]} 74. Rdd8 {[%clk 0:00:03]}  Bf7 {[%clk 0:00:14]} 75. Rdb8 {[%clk 0:00:02]}  h6 {[%clk 0:00:14]} 76. gxh6+ {[%clk 0:00:02]}  Kxh6 {[%clk 0:00:15]} 77. Rh8+ {[%clk 0:00:02]}  Kg7 {[%clk 0:00:16]} 78. Rhb8 {[%clk 0:00:03]}  Kf6 {[%clk 0:00:16]} 79. Rb6+ {[%clk 0:00:02]}  Kg7 {[%clk 0:00:17]} 80. Raa6 {[%clk 0:00:03]}  Nd4 {[%clk 0:00:16]} 81. Kg5 {[%clk 0:00:03]}  Ne6+ {[%clk 0:00:17]} 82. Kg4 {[%clk 0:00:03]}  Nf8 {[%clk 0:00:17]} 83. Kg5 {[%clk 0:00:03]}  Nh7+ {[%clk 0:00:17]} 84. Kg4 {[%clk 0:00:03]}  Re4+ {[%clk 0:00:16]} 85. Kf3 {[%clk 0:00:03]}  Ng5+ {[%clk 0:00:16]} 86. Kg3 {[%clk 0:00:03]}  Rc4 {[%clk 0:00:16]} 87. Rb5 {[%clk 0:00:04]}  Ne4+ {[%clk 0:00:17]} 88. Kf3 {[%clk 0:00:03]}  Nc5 {[%clk 0:00:17]} 89. Rd6 {[%clk 0:00:02]}  Ne4 {[%clk 0:00:15]} 90. Rd7 {[%clk 0:00:02]}  Nf6 {[%clk 0:00:16]} 91. Ra7 {[%clk 0:00:01]}  Rc3+ {[%clk 0:00:14]} 92. Kf4 {[%clk 0:00:01]}  Rc4+ {[%clk 0:00:13]} 93. Kg5 {[%clk 0:00:02]}  Rc6 {[%clk 0:00:13]} 94. Rbb7 {[%clk 0:00:01]}  Nh7+ {[%clk 0:00:14]} 95. Kf4 {[%clk 0:00:01]}  Rf6+ {[%clk 0:00:15]} 96. Kg4 {[%clk 0:00:02]}  Rf5 {[%clk 0:00:15]} 97. Kg3 {[%clk 0:00:03]}  Nf8 {[%clk 0:00:16]} 98. Kg2 {[%clk 0:00:03]}  Ne6 {[%clk 0:00:16]} 99. Kg3 {[%clk 0:00:02]}  g5 {[%clk 0:00:17]} 100. Re7 {[%clk 0:00:02]}  Kg6 {[%clk 0:00:17]} 101. Kg4 {[%clk 0:00:02]}  Rf4+ {[%clk 0:00:17]} 102. Kg3 {[%clk 0:00:02]}  Ng7 {[%clk 0:00:18]} 103. Re3 {[%clk 0:00:02]}  Nf5+ {[%clk 0:00:18]} 104. Kg2 {[%clk 0:00:02]}  Nxe3+ {[%clk 0:00:19]} 0-1


[Site "https://www.chess.com"]